fUST/lending_fUST_20250610
["ID","MTS","AMOUNT","RATE_DAILY","PERIOD"]
[365232669,1749558653506,-460.0,0.00024383,4]
[365232670,1749558653516,-460.0,0.00024383,4]
[365232671,1749558653525,-460.0,0.00024383,4]
[365232672,1749558653535,-632.11,0.00024383,4]
[365232673,1749558653544,-460.0,0.00024383,4]
[365232674,1749558653554,-2820.8,0.00024383,4]
[365232675,1749558653564,-476.81551,0.00024383,7]
[365232676,1749558653574,-476.81551,0.00024383,7]
[365232677,1749558653583,-151.0,0.00024383,7]
[365232678,1749558653593,-460.0,0.00024383,4]
[365232679,1749558653603,-460.0,0.00024383,4]
[365232680,1749558653612,-992.29,0.00024383,4]
[365232681,1749558653621,-3345.9,0.00024383,4]
[365232682,1749558653631,-2608.83,0.00024383,4]
[365232683,1749558653640,-3150.63,0.00024383,4]
[365232684,1749558653650,-460.0,0.00024383,4]
[365232685,1749558653659,-461.14,0.00024383,4]
[365232686,1749558653669,-460.0,0.00024383,4]
[365232687,1749558653678,-460.0,0.00024383,4]
[365232688,1749558653688,-1994.97,0.00024383,4]
[365232689,1749558653697,-1966.91,0.00024383,4]
[365232690,1749558653707,-2759.7,0.00024383,4]
[365232691,1749558653716,-460.0,0.00024383,4]
[365232692,1749558653726,-460.0,0.00024383,4]
[365232693,1749558653736,-46672.93647411,0.000244,3]
[365232694,1749558653745,-3024.43,0.000244,30]
[365232695,1749558653755,-799999.96026046,0.000244,15]
[365232696,1749558653766,-151.0,0.000244,7]
[365232697,1749558653775,-151.0,0.000244,7]
[365232698,1749558653785,-151.0,0.000244,7]
[365232699,1749558653795,-181.203466,0.000244,7]
[365232700,1749558653804,-322.405961,0.000244,7]
[365232701,1749558653813,-158.054553,0.000244,7]
[365232702,1749558653823,-842.5625,0.000244,7]
[365232703,1749558653832,-160.0,0.000244,7]
[365232704,1749558653842,-476.81551,0.000244,7]
[365232705,1749558653851,-476.81551,0.000244,7]
[365232706,1749558653861,-151.0,0.000244,7]
[365232707,1749558653871,-2000.0,0.000244,30]
[365232708,1749558653883,-1076.0,0.00024426,2]
[365232709,1749558653893,-1322.0,0.00024465,2]
[365232710,1749558653902,-1726.53400946,0.00024486,11]
[365232711,1749558653912,-722.26,0.00024489,4]
[365232712,1749558653922,-6478.71588283,0.00024494,2]
[365232713,1749558653931,-1572.41707948,0.00024499,2]
[365232714,1749558653940,-173.36908644,0.000245,7]
[365232715,1749558653949,-238.13384,0.000245,15]
[365232716,1749558653961,-1878.9209806,0.000245,58]
[365232717,1749558653970,-2000.0,0.000245,30]
[365232718,1749558653979,-874.39,0.000245,31]
[365232719,1749558653988,-874.39,0.000245,31]
[365232720,1749558653998,-874.39,0.000245,31]
[365232721,1749558654007,-874.39,0.000245,31]
[365232722,1749558654016,-874.39,0.000245,31]
[365232723,1749558654025,-874.39,0.000245,31]
[365232724,1749558654035,-874.39,0.000245,31]
[365232725,1749558654044,-874.39,0.000245,31]
[365232726,1749558654054,-874.39,0.000245,31]
[365232727,1749558654064,-874.39,0.000245,31]
[365232728,1749558654073,-874.39,0.000245,31]
[365232729,1749558654083,-874.39,0.000245,31]
[365232730,1749558654092,-874.39,0.000245,31]
[365232731,1749558654102,-874.39,0.000245,31]
[365232732,1749558654112,-874.39,0.000245,31]
[365232733,1749558654122,-874.39,0.000245,31]
[365232734,1749558654131,-446.39,0.000245,2]
[365232735,1749558654141,-219.145308,0.00024518,7]
[365232736,1749558654151,-158.054553,0.00024518,7]
[365232737,1749558654161,-1000.0,0.00024521,2]
[365232738,1749558654170,-1138.6262128,0.00024521,2]
[365232739,1749558654180,-151.0,0.00024525,7]
[365232740,1749558654189,-322.405961,0.00024525,7]
[365232741,1749558654198,-1500.0,0.00024525,14]
[365232742,1749558654208,-1500.0,0.00024525,14]
[365232743,1749558654217,-1500.0,0.00024525,14]
[365232744,1749558654227,-1500.0,0.00024525,14]
[365232745,1749558654238,-1500.0,0.00024525,14]
[365232746,1749558654247,-1500.0,0.00024525,14]
[365232747,1749558654256,-1500.0,0.00024525,14]
[365232748,1749558654266,-1500.0,0.00024525,14]
[365232749,1749558654275,-1500.0,0.00024525,14]
[365232750,1749558654284,-476.81551,0.00024525,7]
[365232751,1749558654294,-476.81551,0.00024525,7]
[365232752,1749558654304,-151.0,0.00024525,7]
[365232753,1749558654314,-1322.0,0.00024525,2]
[365232754,1749558654323,-1322.0,0.00024546,2]
[365232755,1749558654333,-754.0,0.00024551,2]
[365232756,1749558654342,-3784.0,0.0002457,30]
[365232757,1749558654351,-2000.0,0.00024582,2]
[365232758,1749558654360,-2000.0,0.00024582,2]
[365232759,1749558654369,-2002.03517044,0.00024582,2]
[365232760,1749558654379,-2000.0,0.00024582,2]
[365232761,1749558654388,-2000.0,0.00024582,2]
[365232762,1749558654397,-1046.76755518,0.00024586,2]
[365232763,1749558654406,-1503.40524538,0.00024586,2]
[365232764,1749558654416,-2000.0,0.00024586,2]
[365232765,1749558654425,-2400.0,0.00024586,2]
[365232766,1749558654435,-159.173599,0.00024591,2]
[365232767,1749558654444,-40877.76670874,0.00024592,5]
[365232768,1749558654569,-500.0,0.00021055,2]
[365232769,1749558654578,-489.78642268,0.00021095,4]
[365232770,1749558654610,206.92971226,0.00023233,120]
[365232771,1749558654697,-200.0,0.00021,2]
[365232772,1749558654706,-187.17357732,0.00021095,4]
[365232773,1749558654715,-149.7488703,0.00021095,4]
[365232774,1749558654727,-254.45860606,0.00021095,4]
[365232775,1749558654816,-0.95808658,0.00021095,4]
[365232776,1749558654825,-432.44081996,0.00021095,4]
[365232777,1749558654834,-151.0,0.00021095,2]
[365232778,1749558654843,-151.0,0.00021152,2]
[365232779,1749558654916,-857.33,0.00021369,4]
[365232780,1749558654933,-676.96,0.00021369,4]
[365232781,1749558654942,-857.33,0.00021643,4]
[365232782,1749558654951,-676.96,0.00021643,4]
[365232783,1749558654961,-857.33,0.00021917,4]
[365232784,1749558654970,-676.96,0.00021917,4]
[365232785,1749558654979,-162.01390609,0.00021918,2]
[365232786,1749558654988,-857.33,0.00022191,4]
[365232787,1749558654997,-676.96,0.00022191,4]
[365232788,1749558655007,-857.33,0.00022465,4]
[365232789,1749558655016,-676.96,0.00022465,4]
[365232790,1749558655025,-857.33,0.00022739,4]
[365232791,1749558655034,-676.96,0.00022739,4]
[365232792,1749558655045,-857.33,0.00023013,4]
[365232793,1749558655055,-676.96,0.00023013,4]
[365232794,1749558655065,-857.33,0.00023287,4]
[365232795,1749558655074,-676.96,0.00023287,4]
[365232796,1749558655084,-857.33,0.00023561,4]
[365232797,1749558655093,-676.96,0.00023561,4]
[365232798,1749558655103,-857.33,0.00023835,4]
[365232799,1749558655112,-676.96,0.00023835,4]
[365232800,1749558655121,-857.33,0.00024109,4]
[365232801,1749558655131,-676.96,0.00024109,4]
[365232802,1749558655140,-857.33,0.00024383,4]
[365232803,1749558655150,-676.96,0.00024383,4]
[365232804,1749558655160,-35450.12638737,0.00024592,5]
[365232805,1749558655171,-4066.53879202,0.00024592,5]
[365232806,1749558655243,-19.77059576,0.00024592,5]
[365232807,1749558655257,-2749.99999996,0.00024592,5]
[365233017,1749558996506,146154.0,0.00024796,60]
[365233066,1749559610601,-10000.0,0.00019024,2]
[365233067,1749559610624,-180.089272,0.00019253,2]
[365233068,1749559610645,-3619.41146,0.00019581,2]
[365233069,1749559610666,-226.35468164,0.00019692,2]
[365233070,1749559610689,-1476.13,0.00019811,2]
[365233071,1749559610711,-1200.0,0.0001987,2]
[365233072,1749559610940,-300.0,0.0001987,2]
[365233073,1749559610964,-300.0,0.00019871,2]
[365233074,1749559610986,-300.0,0.00019871,2]
[365233075,1749559611008,-300.0,0.00019871,2]
[365233076,1749559611030,-7743.01458636,0.00019872,2]
[365233078,1749559648839,-1457.34,0.00019817,2]
[365233079,1749559648863,-13542.66,0.00019872,2]
[365233612,1749559836238,-1447.08,0.00019816,2]
[365233613,1749559836248,-3614.32541364,0.00019872,2]
[365233614,1749559836258,-293.9913945,0.00019966,2]
[365233615,1749559836268,-500.0,0.00020756,2]
[365233616,1749559836277,-2894.16,0.00020759,2]
[365233617,1749559836287,-207.19105781,0.00020994,2]
[365233618,1749559836297,-300.0,0.00020994,2]
[365233619,1749559836307,-300.0,0.00020994,2]
[365233620,1749559836316,-1200.0,0.00020994,2]
[365233621,1749559836326,-207.19105779,0.00020995,2]
[365233622,1749559836335,-207.19105779,0.00020995,2]
[365233623,1749559836345,-537.978401,0.00021073,2]
[365233624,1749559836355,-305.80835131,0.00021073,2]
[365233625,1749559836365,-500.0,0.00021073,2]
[365233626,1749559836374,-500.0,0.00021073,2]
[365233627,1749559836383,-500.0,0.00021073,2]
[365233628,1749559836393,-500.0,0.00021073,2]
[365233629,1749559836402,-500.0,0.00021073,2]
[365233630,1749559836412,-559.24938011,0.00021073,2]
[365233631,1749559836421,-500.0,0.00021073,2]
[365233632,1749559836430,-500.0,0.00021073,2]
[365233633,1749559836440,-500.0,0.00021073,2]
[365233634,1749559836450,-500.0,0.00021073,2]
[365233635,1749559836459,-500.0,0.00021073,2]
[365233636,1749559836468,-500.0,0.00021073,2]
[365233637,1749559836477,-500.0,0.00021073,2]
[365233638,1749559836486,-500.0,0.00021073,2]
[365233639,1749559836496,-500.0,0.00021073,2]
[365233640,1749559836505,-502.30846412,0.00021073,2]
[365233641,1749559836515,-389.79435841,0.00021073,2]
[365233642,1749559836525,-502.73905799,0.00021073,2]
[365233643,1749559836535,-500.0,0.00021073,2]
[365233644,1749559836545,-500.0,0.00021073,2]
[365233645,1749559836556,-500.0,0.00021073,2]
[365233646,1749559836566,-507.05499244,0.00021073,2]
[365233647,1749559836576,-500.0,0.00021073,2]
[365233648,1749559836586,-500.0,0.00021073,2]
[365233649,1749559836597,-501.16962902,0.00021073,2]
[365233650,1749559836607,-549.40032849,0.00021073,2]
[365233651,1749559836617,-500.0,0.00021073,2]
[365233652,1749559836626,-500.0,0.00021073,2]
[365233653,1749559836637,-500.0,0.00021073,2]
[365233654,1749559836647,-221.96,0.00021085,3]
[365233655,1749559836656,-665.88,0.00021085,3]
[365233656,1749559836666,-178.79,0.00021085,3]
[365233657,1749559836675,-536.37,0.00021085,3]
[365233658,1749559836684,-160.0,0.00021094,2]
[365233659,1749559836694,-210.479,0.00021094,2]
[365233660,1749559836704,-500.0,0.00021094,2]
[365233661,1749559836714,-500.0,0.00021094,2]
[365233662,1749559836723,-361.64909145,0.00021094,2]
[365233663,1749559836733,-500.0,0.00021094,2]
[365233664,1749559836742,-500.0,0.00021094,2]
[365233665,1749559836752,-551.48999343,0.00021094,2]
[365233666,1749559836762,-514.88646826,0.00021094,2]
[365233667,1749559836772,-500.0,0.00021094,2]
[365233668,1749559836781,-500.0,0.00021094,2]
[365233669,1749559836791,-436.12574631,0.00021094,2]
[365233671,1749559836800,-325.79512001,0.00021094,2]
[365233672,1749559836810,-266.17999522,0.00021094,2]
[365233673,1749559836820,-500.0,0.00021094,2]
[365233674,1749559836830,-295.38150556,0.00021094,2]
[365233675,1749559836839,-500.0,0.00021094,2]
[365233676,1749559836848,-500.0,0.00021094,2]
[365233677,1749559836858,-512.19003092,0.00021094,2]
[365233678,1749559836867,-500.0,0.00021094,2]
[365233679,1749559836877,-186.67474246,0.00021094,2]
[365233680,1749559836886,-302.70030369,0.00021094,2]
[365233681,1749559836895,-500.0,0.00021094,2]
[365233682,1749559836906,-500.0,0.00021094,2]
[365233683,1749559836915,-500.0,0.00021094,2]
[365233684,1749559836924,-500.0,0.00021094,2]
[365233685,1749559836934,-500.0,0.00021094,2]
[365233686,1749559836944,-500.0,0.00021094,2]
[365233687,1749559836953,-155.7210392,0.00021094,2]
[365233688,1749559836962,-275.83100843,0.00021094,2]
[365233689,1749559836975,-500.0,0.00021094,2]
[365233690,1749559836985,-500.0,0.00021094,2]
[365233691,1749559836995,-500.0,0.00021094,2]
[365233692,1749559837004,-417.3357614,0.00021094,2]
[365233693,1749559837014,-500.0,0.00021094,2]
[365233694,1749559837024,-500.0,0.00021094,2]
[365233695,1749559837033,-419.84502178,0.00021094,2]
[365233696,1749559837043,-500.0,0.00021094,2]
[365233697,1749559837052,-500.0,0.00021094,2]
[365233698,1749559837062,-500.0,0.00021094,2]
[365233699,1749559837071,-419.84502178,0.00021094,2]
[365233700,1749559837081,-500.0,0.00021094,2]
[365233701,1749559837090,-500.0,0.00021094,2]
[365233702,1749559837100,-500.0,0.00021094,2]
[365233703,1749559837109,-419.84502178,0.00021094,2]
[365233704,1749559837119,-500.0,0.00021094,2]
[365233705,1749559837128,-424.7073645,0.00021094,2]
[365233706,1749559837138,-500.0,0.00021094,2]
[365233707,1749559837148,-500.0,0.00021094,2]
[365233708,1749559837158,-500.0,0.00021094,2]
[365233709,1749559837168,-419.84502178,0.00021094,2]
[365233710,1749559837178,-500.0,0.00021094,2]
[365233711,1749559837187,-500.0,0.00021094,2]
[365233712,1749559837198,-589.04826043,0.00021094,2]
[365233713,1749559837207,-231.10977753,0.00021094,2]
[365233714,1749559837217,-500.0,0.00021094,2]
[365233715,1749559837227,-500.0,0.00021094,2]
[365233716,1749559837236,-500.0,0.00021094,2]
[365233717,1749559837246,-500.0,0.00021094,2]
[365233718,1749559837256,-419.84502178,0.00021094,2]
[365233719,1749559837265,-186.15079934,0.00021094,2]
[365233720,1749559837276,-500.0,0.00021094,2]
[365233721,1749559837286,-500.0,0.00021094,2]
[365233722,1749559837296,-500.0,0.00021094,2]
[365233723,1749559837305,-155.7210392,0.00021094,2]
[365233724,1749559837315,-500.0,0.00021094,2]
[365233725,1749559837325,-500.0,0.00021094,2]
[365233726,1749559837335,-500.0,0.00021094,2]
[365233727,1749559837344,-419.84502178,0.00021094,2]
[365233728,1749559837354,-500.0,0.00021094,2]
[365233729,1749559837365,-415.00426348,0.00021094,2]
[365233730,1749559837375,-500.0,0.00021094,2]
[365233731,1749559837386,-500.0,0.00021094,2]
[365233732,1749559837396,-500.0,0.00021094,2]
[365233733,1749559837406,-500.0,0.00021094,2]
[365233734,1749559837419,-500.0,0.00021094,2]
[365233735,1749559837428,-500.0,0.00021094,2]
[365233736,1749559837438,-500.0,0.00021094,2]
[365233737,1749559837447,-500.0,0.00021094,2]
[365233738,1749559837457,-639.30259801,0.00021094,2]
[365233739,1749559837466,-500.0,0.00021094,2]
[365233740,1749559837476,-500.0,0.00021094,2]
[365233741,1749559837486,-500.0,0.00021094,2]
[365233742,1749559837496,-300.0,0.00021094,2]
[365233743,1749559837506,-500.0,0.00021094,2]
[365233744,1749559837515,-500.0,0.00021094,2]
[365233745,1749559837524,-500.0,0.00021094,2]
[365233746,1749559837648,-155.7210392,0.00021094,2]
[365233747,1749559837659,-500.0,0.00021094,2]
[365233748,1749559837669,-500.0,0.00021094,2]
[365233749,1749559837679,-500.0,0.00021094,2]
[365233750,1749559837688,-187.334358,0.00021094,2]
[365233751,1749559837697,-500.0,0.00021094,2]
[365233752,1749559837706,-500.0,0.00021094,2]
[365233753,1749559837715,-187.334358,0.00021094,2]
[365233754,1749559837725,-563.92690632,0.00021094,2]
[365233755,1749559837734,-500.0,0.00021094,2]
[365233756,1749559837744,-500.0,0.00021094,2]
[365233757,1749559837754,-500.0,0.00021094,2]
[365233758,1749559837763,-500.0,0.00021094,2]
[365233759,1749559837773,-474.4036888,0.00021094,2]
[365233760,1749559837783,-500.0,0.00021094,2]
[365233761,1749559837793,-500.0,0.00021094,2]
[365233762,1749559837802,-187.334358,0.00021094,2]
[365233763,1749559837812,-151.0,0.00021095,2]
[365233764,1749559837822,-151.0,0.00021095,2]
[365233765,1749559837831,-458.29636116,0.00021095,4]
[365233766,1749559837841,-151.0,0.00021095,2]
[365233767,1749559837851,-441.561035,0.00021095,4]
[365233768,1749559837860,-440.0,0.00021095,4]
[365233769,1749559837870,-440.0,0.00021095,4]
[365233770,1749559837879,-440.0,0.00021095,4]
[365233771,1749559837888,-420.0,0.00021095,4]
[365233772,1749559837898,-460.0,0.00021095,4]
[365233773,1749559837908,-460.0,0.00021095,4]
[365233774,1749559837917,-444.95386273,0.00021095,4]
[365233775,1749559837927,-460.0,0.00021095,4]
[365233776,1749559837936,-438.58898723,0.00021095,4]
[365233777,1749559837946,-426.46983865,0.00021095,4]
[365233778,1749559837955,-460.0,0.00021095,4]
[365233779,1749559837964,-184.77831873,0.00021095,4]
[365233780,1749559837973,-395.11338876,0.00021095,4]
[365233781,1749559837983,-460.0,0.00021095,4]
[365233782,1749559837992,-425.16064833,0.00021095,4]
[365233783,1749559838001,-460.0,0.00021095,4]
[365233784,1749559838011,-460.0,0.00021095,4]
[365233785,1749559838020,-440.0,0.00021095,4]
[365233786,1749559838029,-460.0,0.00021095,4]
[365233787,1749559838039,-460.0,0.00021095,4]
[365233788,1749559838048,-557.72860522,0.00021095,4]
[365233789,1749559838058,-460.0,0.00021095,4]
[365233790,1749559838067,-575.51440866,0.00021095,4]
[365233791,1749559838076,-168.95824352,0.00021095,4]
[365233792,1749559838086,-227.19952512,0.00021095,4]
[365233793,1749559838095,-460.0,0.00021095,4]
[365233794,1749559838105,-372.64623599,0.00021095,4]
[365233795,1749559838119,-303.91061213,0.00021095,4]
[365233796,1749559838130,-444.24529464,0.00021095,4]
[365233797,1749559838139,-460.0,0.00021095,4]
[365233798,1749559838149,-460.0,0.00021095,4]
[365233799,1749559838158,-427.44700746,0.00021095,4]
[365233800,1749559838167,-300.46151265,0.00021095,4]
[365233801,1749559838176,-460.0,0.00021095,4]
[365233802,1749559838185,-427.79140019,0.00021095,4]
[365233805,1749559838204,-460.0,0.00021095,4]
[365233807,1749559838215,-460.0,0.00021095,4]
[365233808,1749559838225,-460.0,0.00021095,4]
[365233810,1749559838236,-460.0,0.00021095,4]
[365233812,1749559838246,-460.0,0.00021095,4]
[365233815,1749559838256,-220.34110096,0.00021095,4]
[365233817,1749559838266,-460.0,0.00021095,4]
[365233819,1749559838276,-450.0,0.00021095,4]
[365233821,1749559838286,-404.64973997,0.00021095,4]
[365233823,1749559838296,-312.17375379,0.00021095,4]
[365233825,1749559838306,-460.0,0.00021095,4]
[365233827,1749559838316,-403.63129652,0.00021095,4]
[365233829,1749559838326,-460.0,0.00021095,4]
[365233831,1749559838336,-460.0,0.00021095,4]
[365233832,1749559838347,-460.0,0.00021095,4]
[365233833,1749559838357,-460.0,0.00021095,4]
[365233834,1749559838367,-350.0,0.00021095,4]
[365233835,1749559838377,-357.66370567,0.00021095,4]
[365233836,1749559838387,-440.44955845,0.00021095,4]
[365233837,1749559838397,-562.02136148,0.00021095,4]
[365233838,1749559838406,-450.0,0.00021095,4]
[365233839,1749559838416,-460.0,0.00021095,4]
[365233840,1749559838425,-460.0,0.00021095,4]
[365233841,1749559838435,-264.75783955,0.00021095,4]
[365233842,1749559838444,-450.0,0.00021095,4]
[365233843,1749559838454,-430.0,0.00021095,4]
[365233844,1749559838464,-360.14861555,0.00021095,4]
[365233846,1749559838473,-450.0,0.00021095,4]
[365233848,1749559838483,-460.0,0.00021095,4]
[365233849,1749559838494,-406.2834325,0.00021095,4]
[365233850,1749559838504,-460.0,0.00021095,4]
[365233852,1749559838513,-460.0,0.00021095,4]
[365233853,1749559838525,-388.18044208,0.00021095,4]
[365233855,1749559838534,-351.41348252,0.00021095,4]
[365233857,1749559838544,-460.0,0.00021095,4]
[365233859,1749559838556,-460.0,0.00021095,4]
[365233861,1749559838565,-359.8985992,0.00021095,4]
[365233863,1749559838575,-430.0,0.00021095,4]
[365233865,1749559838585,-489.79383217,0.00021095,4]
[365233867,1749559838595,-355.63649841,0.00021095,4]
[365233869,1749559838607,-565.03417453,0.00021095,4]
[365233871,1749559838617,-460.0,0.00021095,4]
[365233873,1749559838627,-357.58131252,0.00021095,4]
[365233875,1749559838636,-460.0,0.00021095,4]
[365233877,1749559838646,-404.2659009,0.00021095,4]
[365233879,1749559838655,-275.92268358,0.00021095,4]
[365233881,1749559838665,-460.0,0.00021095,4]
[365233883,1749559838674,-430.0,0.00021095,4]
[365233885,1749559838684,-460.0,0.00021095,4]
[365233887,1749559838693,-460.0,0.00021095,4]
[365233889,1749559838703,-460.0,0.00021095,4]
[365233890,1749559838713,-460.0,0.00021095,4]
[365233892,1749559838723,-460.0,0.00021095,4]
[365233894,1749559838733,-460.0,0.00021095,4]
[365233896,1749559838743,-459.13379045,0.00021095,4]
[365233898,1749559838760,-460.0,0.00021095,4]
[365233900,1749559838771,-460.0,0.00021095,4]
[365233903,1749559838781,-430.0,0.00021095,4]
[365233905,1749559838791,-460.0,0.00021095,4]
[365233907,1749559838801,-460.0,0.00021095,4]
[365233908,1749559838811,-410.0,0.00021095,4]
[365233910,1749559838820,-460.0,0.00021095,4]
[365233912,1749559838830,-460.0,0.00021095,4]
[365233914,1749559838840,-460.0,0.00021095,4]
[365233916,1749559838850,-507.68222954,0.00021095,4]
[365233918,1749559838859,-414.58381717,0.00021095,4]
[365233920,1749559838869,-460.0,0.00021095,4]
[365233922,1749559838879,-460.0,0.00021095,4]
[365233924,1749559838888,-460.0,0.00021095,4]
[365233926,1749559838897,-460.0,0.00021095,4]
[365233928,1749559838907,-464.94576754,0.00021095,4]
[365233930,1749559838916,-460.0,0.00021095,4]
[365233932,1749559838926,-460.0,0.00021095,4]
[365233934,1749559838935,-460.0,0.00021095,4]
[365233936,1749559838944,-460.0,0.00021095,4]
[365233938,1749559838955,-460.0,0.00021095,4]
[365233940,1749559838965,-460.0,0.00021095,4]
[365233942,1749559838975,-460.0,0.00021095,4]
[365233944,1749559838984,-460.0,0.00021095,4]
[365233946,1749559838994,-460.0,0.00021095,4]
[365233948,1749559839003,-460.0,0.00021095,4]
[365233950,1749559839013,-500.0,0.00021095,4]
[365233952,1749559839024,-500.0,0.00021095,4]
[365233954,1749559839034,-500.0,0.00021095,4]
[365233956,1749559839043,-500.0,0.00021095,4]
[365233958,1749559839053,-500.0,0.00021095,4]
[365233960,1749559839062,-240.39217491,0.00021095,4]
[365233962,1749559839071,-440.0,0.00021095,4]
[365233964,1749559839080,-460.0,0.00021095,4]
[365233966,1749559839090,-460.0,0.00021095,4]
[365233968,1749559839099,-460.0,0.00021095,4]
[365233970,1749559839109,-460.0,0.00021095,4]
[365233972,1749559839120,-460.0,0.00021095,4]
[365233974,1749559839129,-460.0,0.00021095,4]
[365233976,1749559839139,-460.0,0.00021095,4]
[365233978,1749559839148,-460.0,0.00021095,4]
[365233980,1749559839159,-666.27,0.00021095,4]
[365233982,1749559839168,-500.0,0.00021095,4]
[365233984,1749559839178,-500.0,0.00021095,4]
[365233986,1749559839187,-500.0,0.00021095,4]
[365233988,1749559839197,-500.0,0.00021095,4]
[365233990,1749559839206,-500.0,0.00021095,4]
[365233992,1749559839215,-460.0,0.00021095,4]
[365233994,1749559839225,-500.0,0.00021095,4]
[365233996,1749559839235,-500.0,0.00021095,4]
[365233998,1749559839245,-500.0,0.00021095,4]
[365234000,1749559839255,-460.0,0.00021095,4]
[365234002,1749559839264,-460.0,0.00021095,4]
[365234003,1749559839274,-460.0,0.00021095,4]
[365234005,1749559839284,-435.16852193,0.00021095,4]
[365234007,1749559839293,-460.0,0.00021095,4]
[365234009,1749559839303,-500.60080502,0.00021095,4]
[365234011,1749559839313,-450.0,0.00021095,4]
[365234013,1749559839323,-460.0,0.00021095,4]
[365234015,1749559839333,-460.0,0.00021095,4]
[365234017,1749559839342,-460.0,0.00021095,4]
[365234019,1749559839352,-457.29807494,0.00021095,4]
[365234021,1749559839362,-460.0,0.00021095,4]
[365234023,1749559839372,-451.84824957,0.00021095,4]
[365234025,1749559839382,-460.0,0.00021095,4]
[365234027,1749559839392,-458.09674538,0.00021095,4]
[365234029,1749559839402,-460.0,0.00021095,4]
[365234030,1749559839412,-460.0,0.00021095,4]
[365234032,1749559839421,-772.22,0.00021095,4]
[365234034,1749559839431,-460.0,0.00021095,4]
[365234036,1749559839440,-460.0,0.00021095,4]
[365234038,1749559839450,-430.0,0.00021095,4]
[365234040,1749559839459,-271.96627324,0.00021095,4]
[365234042,1749559839469,-460.0,0.00021095,4]
[365234044,1749559839479,-460.0,0.00021095,4]
[365234046,1749559839489,-500.0,0.00021095,4]
[365234048,1749559839498,-460.0,0.00021095,4]
[365234050,1749559839508,-422.29655223,0.00021095,4]
[365234052,1749559839518,-460.0,0.00021095,4]
[365234054,1749559839528,-430.05060219,0.00021095,4]
[365234056,1749559839537,-396.67976486,0.00021095,4]
[365234058,1749559839547,-454.02051491,0.00021095,4]
[365234060,1749559839559,-297.32821236,0.00021095,4]
[365234062,1749559839569,-460.0,0.00021095,4]
[365234064,1749559839578,-460.0,0.00021095,4]
[365234066,1749559839588,-460.0,0.00021095,4]
[365234068,1749559839599,-442.64456056,0.00021095,4]
[365234070,1749559839609,-538.71169031,0.00021095,4]
[365234072,1749559839618,-460.0,0.00021095,4]
[365234073,1749559839627,-460.0,0.00021095,4]
[365234075,1749559839638,-500.0,0.00021095,4]
[365234077,1749559839648,-500.0,0.00021095,4]
[365234079,1749559839657,-500.0,0.00021095,4]
[365234081,1749559839667,-408.91613371,0.00021095,4]
[365234083,1749559839677,-500.0,0.00021095,4]
[365234085,1749559839686,-460.0,0.00021095,4]
[365234088,1749559839696,-500.0,0.00021095,4]
[365234090,1749559839706,-500.0,0.00021095,4]
[365234091,1749559839715,-500.0,0.00021095,4]
[365234094,1749559839725,-500.0,0.00021095,4]
[365234096,1749559839734,-500.0,0.00021095,4]
[365234097,1749559839744,-460.0,0.00021095,4]